Cogmind - Beta 17 @@@ ROGUE MODE // 2026.07.04 @ 23:24:15 Player: DreamCore Result: Destroyed by YS-X44(R) with Subdweller Machine Gun Performance ------------- Evolutions (0) 0 Regions Visited (2) 400 Robots Destroyed (25) 125 Value Destroyed (632) 632 Prototype IDs (0) 0 Alien Tech Used (0) 0 Bonus (0) 0 TOTAL SCORE: 1157 Bonus ------- None Cogmind --------- Core Integrity 0/250 Matter 284/300 Energy 79/100 System Corruption 0% Temperature Cool (0) Movement Treading (160) Location -10/Subcaves Parts ------- > --- POWER (1) -------- Subdweller Power Source > --- PROPULSION (2) --- Light Treads Spiked Treads > --- UTILITY (2) ------ Large Storage Unit > --- WEAPON (2) ------- Makeshift Laser Barrage Gun > --- INVENTORY (15) --- Subdweller Power Source Subdweller Power Source Light Treads Aluminum Leg Aluminum Leg Aluminum Leg Aluminum Leg Compact Wheel Disposable Heat Sink Structural Scanner Makeshift Hacking Suite Small Laser Subdweller Laser Light Assault Rifle Subdweller Machine Gun Peak State ------------ > --- POWER ------------ Subdweller Power Source > --- PROPULSION ------- Light Treads Spiked Treads > --- UTILITY ---------- Large Storage Unit > --- WEAPON ----------- Makeshift Laser Barrage Gun > --- INVENTORY -------- Subdweller Power Source Light Treads Aluminum Leg Aluminum Leg Aluminum Leg Aluminum Leg Wheel Compact Wheel Disposable Heat Sink Structural Scanner Makeshift Hacking Suite Small Laser Light Assault Rifle Subdweller Machine Gun Scrap Shield Fragment [Rating: 15] Favorites ----------- Power Light Ion Engine Engine Light Ion Engine Propulsion Light Treads Treads Light Treads Leg Aluminum Leg Utility Propulsion Shielding Storage Large Storage Unit Protection Propulsion Shielding Weapon Assault Rifle Energy Gun Makeshift Laser Ballistic Gun Assault Rifle Build | -11 -10 -10 ------- Run | Yrd Mat Sub Slots Evolved . | . . . Power . | . . . Propulsion . | . . . Utility . | . . . Weapon . | . . . Parts Attached 24 | . 17 7 Power 4 | . 2 2 Engine 4 | . 2 2 Core . | . . . Reactor . | . . . Propulsion 6 | . 5 1 Treads 3 | . 2 1 Leg 3 | . 3 . Wheel . | . . . Hover . | . . . Flight . | . . . Utility 4 | . 3 1 Device . | . . . Storage 1 | . 1 . Processor . | . . . Hackware . | . . . Protection 3 | . 2 1 Artifact . | . . . Weapon 10 | . 7 3 Energy Gun 2 | . 1 1 Energy Cannon . | . . . Ballistic Gun 8 | . 6 2 Ballistic Cannon . | . . . Launcher . | . . . Special Weapon . | . . . Impact Weapon . | . . . Slashing Weapon . | . . . Piercing Weapon . | . . . Special Melee Weapon . | . . . Unidentified Prototypes . | . . . Parts Lost 8 | . 2 6 Power 4 | . 2 2 Propulsion 1 | . . 1 Utility 2 | . . 2 Weapon 1 | . . 1 Highest Loss Streak 3 | . 1 3 To Critical Strikes 1 | . . 1 Average Backups 12 | . 10 14 Power . | . . . Propulsion 6 | . 5 6 Utility 2 | . 2 3 Weapon 2 | . 2 3 Tool/Special . | . . . Unused Backups 21 | . 6 15 Power 3 | . 1 2 Propulsion 8 | . 3 5 Utility 5 | . 1 4 Weapon 5 | . 1 4 Tool/Special . | . . . Average Slot Usage (%) 97 | . 98 95 Engine 14 | . 14 14 Treads 19 | . 12 27 Leg 8 | . 15 . Storage 14 | . 14 14 Protection 11 | . 12 10 Energy Gun 2 | . 1 3 Ballistic Gun 25 | . 26 24 Peak Build Rating 15 | . 8 15 Average Rating 8 | . 7 9 On Entrance 6 | 6 6 8 Avg Prop Armor Cover (%) . | . . . Naked Turns . | . . . Heaviest Build 31 | 14 30 31 Greatest Support 40 | 20 40 40 Greatest Overweight (x) 1 | . . 1 Average Overweight (x) . | . . . Largest Inventory Capacity 15 | . 15 15 Average Capacity 12 | . 11 15 Most Carried 15 | . 15 15 Average Carried 12 | . 10 14 Final Capacity 15 | 8 15 15 Final Carried 15 | 6 15 15 Class Distribution -------------------- 100% | Mutant Dominant Class ---------------- Mutant | -10/Materials Mutant | -10/Subcaves Resources | -11 -10 -10 ----------- Run | Yrd Mat Sub Matter Collected 841 | 200 493 148 Remotely . | . . . Salvage Created 966 | . 704 262 Parts 54 | . 43 11 Haulers Intercepted 2 | . 2 . Recyclers Shooed . | . . . Parts Field Recycled . | . . . Retrieved Matter . | . . . Parts Self-Destructed 9 | . . 9 Prevented . | . . . Parts Restored . | . . . Kills | -11 -10 -10 ------- Run | Yrd Mat Sub Combat Hostiles Destroyed 20 | . 14 6 Guns 19 | . 14 5 AOE 1 | . . 1 Classes Destroyed 7 | . 6 1 Worker 1 | . 1 . Hauler 2 | . 2 . Recycler 1 | . 1 . Mechanic 1 | . 1 . Swarmer 6 | . 6 . Grunt 8 | . 8 . Subdweller 6 | . . 6 Best Kill Streak 3 | . 3 3 Combat Bots Only 3 | . 3 3 Max Kills in Single Turn 1 | . 1 1 Gunslinging . | . . . Exploded 1 | . . 1 Melee . | . . . Uniques/NPCs Destroyed . | . . . Combat | -11 -10 -10 -------- Run | Yrd Mat Sub Hostile Shots Fired 134 | . 86 48 Missed 33 | . 22 11 Hits 101 | . 64 37 Projectile 101 | . 64 37 AOE 1 | . . 1 Critical Strikes 1 | . . 1 Actively Blocked 2 | . . 2 Damage Taken 1691 | . 716 975 Core 263 | . 102 161 Absorbed by Shields . | . . . Redirected to Shielding 105 | . 74 31 Core Remaining (%) 100 | 100 . . Volleys Fired 116 | . 92 24 Largest 2 | . 2 2 Hottest 78 | . 60 78 Shots Fired 232 | . 184 48 Gun 232 | . 184 48 Cannon . | . . . Launcher . | . . . Special . | . . . Kinetic 218 | . 177 41 Thermal 14 | . 7 7 Explosive . | . . . Electromagnetic . | . . . Robot Hit Streak 22 | . 22 10 Robot Miss Streak 6 | . 6 2 Penetration Max . | . . . Secondary Targets 2 | . 1 1 Max Gunslinging Chain 1 | . 1 1 Shots Hit Robots 136 | . 98 38 Core Hits 48 | . 35 13 Critical Kills 1 | . . 1 Critical Parts Destroyed . | . . . Critical Strikes 2 | . . 2 Burn 1 | . . 1 Destroy 1 | . . 1 Melee Attacks . | . . . Impact . | . . . Slashing . | . . . Piercing . | . . . Sneak Attacks . | . . . Combat Hostiles . | . . . Follow-up Attacks . | . . . Damage Inflicted 1565 | . 1095 470 Guns 1558 | . 1088 470 Cannons . | . . . Explosions . | . . . Melee . | . . . Ramming 7 | . 7 . Kinetic 1416 | . 1065 351 Thermal 142 | . 23 119 Explosive . | . . . Electromagnetic . | . . . Impact . | . . . Slashing . | . . . Piercing . | . . . Highest Corruption . | . . . Average Corruption . | . . . Corruption Purged . | . . . Corruption Blocked . | . . . Overload Shots . | . . . Overflow Damage . | . . . Projectiles . | . . . Explosions . | . . . Melee . | . . . Knockbacks . | . . . Impact . | . . . Kinetic . | . . . Secondary . | . . . Self-Inflicted Damage . | . . . Shots . | . . . Rammed 2 | . 2 . Targets Rammed 2 | . 2 . Kicked . | . . . Crushed . | . . . Highest Temperature 21 | . 21 . Average Temperature 7 | . 7 . Received Heat Transfer 381 | . 264 117 Siege Activations . | . . . Martial Activations . | . . . Shielding Activations . | . . . Robots Disrupted . | . . . Combat Hostiles . | . . . Robots Corrupted . | . . . Combat Hostiles . | . . . Parts Fried . | . . . Impact Corruptions . | . . . Robots Melted . | . . . Combat Hostiles . | . . . Parts Melted 1 | . . 1 Heat Transferred 383 | . 50 333 Parts Sabotaged . | . . . Parts Stolen . | . . . Parts Stripped . | . . . Power Chain Reactions . | . . . Alert | -11 -10 -10 ------- Run | Yrd Mat Sub Maximum Alert Level . | . . . Low Security (%) 100 | . 100 . Level 1 . | . . . Level 2 . | . . . Level 3 . | . . . Level 4 . | . . . Level 5 . | . . . High Security . | . . . Max Security . | . . . Peak Influence 100 | . 100 . Initial . | . . . Average 34 | . 34 . Influence Increases 446 | . 446 . Destroy 0b10 Robot/C 280 | . 280 . Destroy 0b10 Robot/NC 25 | . 25 . Destroy Leader 64 | . 64 . Successful Hack 47 | . 47 . Disable Machine 15 | . 15 . Lose Combat Pursuer 15 | . 15 . Influence Decreases 446 | . 446 . Time Decay 436 | . 436 . Lost Part 10 | . 10 . Squads Dispatched 2 | . 2 . Investigation 1 | . 1 . Extermination . | . . . Reinforcement 1 | . 1 . Assault . | . . . Garrison . | . . . Intercept . | . . . Searches Triggered . | . . . Construction Impeded . | . . . Haulers Reinforced . | . . . Active Scanning Responses . | . . . Cargo Convoy Interrupts . | . . . Stealth | -11 -10 -10 --------- Run | Yrd Mat Sub Distress Signals 1 | . 1 . Communications Jammed . | . . . Distress Signals . | . . . Times Spotted 46 | . 38 8 Peak Tracking Total 4 | . 4 3 Tactical Retreats 1 | . 1 . Traps | -11 -10 -10 ------- Run | Yrd Mat Sub Traps Triggered 5 | . 2 3 Indirectly . | . . . Trap Hack Attempts . | . . . Triggered . | . . . Disarmed . | . . . Reprogrammed . | . . . Reused 1 | . . 1 Traps Extracted . | . . . Installed 1 | . . 1 Triggered . | . . . Most Traps Carried 1 | . . 1 Machines | -11 -10 -10 ---------- Run | Yrd Mat Sub Machines Disabled 1 | . 1 . Max in Single Turn 1 | . 1 . Machines Repaired . | . . . Machines Dismantled . | . . . Machines Sabotaged . | . . . Overloaded Fab Kills . | . . . Hacking | -11 -10 -10 --------- Run | Yrd Mat Sub Machines Accessed 9 | . 9 . Terminals 6 | . 6 . Fabricators . | . . . Repair Stations 1 | . 1 . Recycling Units 2 | . 2 . Scanalyzers . | . . . Garrison Access . | . . . Total Hacks 25 | . 25 . Successful 12 | . 12 . Failed 13 | . 13 . Catastrophic 2 | . 2 . Database Lockouts . | . . . Manual 16 | . 16 . Terminals 19 | . 19 . Fabricators . | . . . Repair Stations 2 | . 2 . Recycling Units 4 | . 4 . Scanalyzers . | . . . Garrison Access . | . . . Terminal Hacks 6 | . 6 . Record 1 | . 1 . Robot Analysis 3 | . 3 . Recall Investigation 1 | . 1 . Hauler Manifests 1 | . 1 . Fabricator Hacks . | . . . Repair Station Hacks 1 | . 1 . Scan Component 1 | . 1 . Recycling Unit Hacks 2 | . 2 . Report Inventory 1 | . 1 . Retrieve Components 1 | . 1 . Scanalyzer . | . . . Garrison Access Hacks . | . . . Unauthorized Hacks 3 | . 3 . Terminals 2 | . 2 . Botnet 2 | . 2 . Fabricators . | . . . Repair Stations . | . . . Recycling Units 1 | . 1 . Reject 1 | . 1 . Scanalyzers . | . . . Garrison Access . | . . . Data Cores Recovered . | . . . Used . | . . . Hacking Detections 7 | . 7 . Full Trace Events 1 | . 1 . Feedback Events . | . . . Feedback Blocked . | . . . Robot Schematics Acquired . | . . . Robots Built . | . . . Authchips . | . . . Time . | . . . Total Robot Build Rating . | . . . Part Schematics Acquired . | . . . Parts Built . | . . . Authchips . | . . . Time . | . . . Total Part Build Rating . | . . . Part Studies Acquired . | . . . Parts Repaired . | . . . Time . | . . . Parts Recycled . | . . . Recycled Matter . | . . . Retrieved Matter . | . . . Retrieved Components 3 | . 3 . Parts Scanalyzed . | . . . Part Schematics Acquired . | . . . Parts Damaged . | . . . Bothacking | -11 -10 -10 ------------ Run | Yrd Mat Sub Used RIF Installer . | . . . Robots Hacked . | . . . Non-combat . | . . . Combat . | . . . Robot Hacks Applied . | . . . Relay Couplers Released . | . . . Fabnet Peak Effective % . | . . . Robots Rewired . | . . . Allies Hacked . | . . . Hacks Repelled . | . . . Allies | -11 -10 -10 -------- Run | Yrd Mat Sub Total Allies . | . . . Largest Group . | . . . Highest-Rated Group . | . . . Highest-Rated Ally . | . . . Total Orders . | . . . Ally Attacks . | . . . Total Damage . | . . . Kills . | . . . Allies Corrupted . | . . . Allies Melted . | . . . Intel | -11 -10 -10 ------- Run | Yrd Mat Sub Active Infowar (turns) . | . . . Robot Analysis Total 3 | . 3 . Derelict Logs Recovered 1 | . . 1 Drone Launches . | . . . Drone Recoveries . | . . . Exploration | -11 -10 -10 ------------- Run | Yrd Mat Sub Turns Passed 2778 | . 1605 1173 Spaces Moved 1587 | 1 921 665 Core . | . . . Treads 1061 | . 396 665 Legs 526 | 1 525 . Wheels . | . . . Hover . | . . . Flight . | . . . Fastest Speed 120 | 120 120 160 Average Speed 147 | 120 137 160 Slowest Speed 240 | 120 160 240 Overloaded Moves . | . . . Propulsion Burnouts . | . . . Robots Hopped . | . . . Potential Cave-ins . | . . . Cave-ins Triggered . | . . . Exploration Rate (%) 43 | 2 98 29 Regions Visited 2 Branch Regions 1 Pre-discovered Areas . | . . . Known Exits Taken . | . . . Unknown Exits Taken 2 | 1 1 . Scrap Searched . | . . . Spaces Dug . | . . . Terrain Destroyed . | . . . Melee . | . . . Projectile . | . . . AOE . | . . . Terrain Rammed . | . . . Walls Destroyed . | . . . Machines Disabled . | . . . Actions | -11 -10 -10 --------- Run | Yrd Mat Sub Total 1831 | . 1101 730 Wait 51 | . 40 11 Move 1585 | . 920 665 Hop . | . . . Pick Up 28 | . 15 13 Fast Attach 2 | . 2 . Attach 8 | . 3 5 Detach . | . . . Swap 15 | . 13 2 Drop 23 | . 14 9 Fire 116 | . 92 24 Melee . | . . . Ram . | . . . Kick . | . . . Crush 2 | . 2 . Escape Stasis . | . . . Rewire . | . . . Trap 1 | . . 1 Miscellaneous . | . . . Route ------- -11/Scrapyard -10/Materials (discovered 6 exits: [*Mat x3] / [*Min x2] / [*Sub]) -10/Subcaves History --------- Turn | Location | Event 1 | -11/Scrapyard | Discovered new exit (range 0) 1 | -11/Scrapyard | Entered Materials 316 | -10/Materials | Build established: Mutant 374 | -10/Materials | Discovered new exit (range 5) 573 | -10/Materials | Discovered new exit (range 6) 762 | -10/Materials | Discovered new exit (range 15) 1312 | -10/Materials | Discovered new exit (range 10) 1475 | -10/Materials | Discovered new exit (range 16) 1583 | -10/Materials | Discovered new exit (range 11) 1606 | -10/Materials | Entered Subcaves 1607 | -10/Subcaves | Approached by a straggling Scientist 1619 | -10/Subcaves | Learned 2 Materials zone layouts 1712 | -10/Subcaves | Core integrity fell below 50% 1871 | -10/Subcaves | Curiously followed by a Cobbler waking with a query about "LVR3C" 2145 | -10/Subcaves | A swath of the cavern ceiling suddenly collapsed 2305 | -10/Subcaves | Shifting Twisted Machinery released Mak. Laser 2307 | -10/Subcaves | Shifting Twisted Machinery released Lgt. Humpback 2480 | -10/Subcaves | Core integrity fell below 20% 2520 | -10/Subcaves | Lost 3 parts (1p1n1u) 2779 | -10/Subcaves | Destroyed by YS-X44(R) with Subdweller Machine Gun Last Messages --------------- 02514_ CE-YKS(O) puts together Barrage Gun. 02514_ Acquired Sub. Power Source. 02523_ Dropped Assault Rifle. E3-PNK(c): "I think it's somewhere northwest of here" 02539_ Acquired 33 matter. 02544_ Dropped Scrap Shield Fragment. 02544_ Acquired Sub. Laser. E3-PNK(c): "I think it's somewhere north of here" 02595_ Dropped Sub. Power Source. 02595_ Acquired Sub. Power Source. 02600_ Dropped Wheel. 02601_ Acquired Sub. Power Source. E3-PNK(c): "I think it's somewhere north of here" 02651_ Subatomizers dissect the Sub. Monowheel. E3-PNK(c): "I think it's somewhere north of here" 02703_ CE-YKS(O) collects matter. E3-PNK(c): "I think it's somewhere north of here" 02763_ Sub. Power Source shoots sparks and powers down. 02773_ YS-X44(R) suffers critical hit (Burn). E3-PNK(c): "I think it's somewhere north of here" Map ----- +----------------------------------------------------+ | ?????????????????????????????????????????????????? | | ?????????????????????????????????????????????????? | | ?????????????????????????????????????????????????? | | ?????????????????????????????????????????????????? | | ?????????????????????????????????????????????????? | | ?????????????????????????????????????????????????? | | ?????????????????????????????????????????????????? | | ?????????????????????????????????????????????????? | | ?????????????????????????????????????????????????? | | ?????????????????????????????????????????????????? | | ?????????????????????????###???????????????????##? | | ?????????????????????????# ##???????#####???### ## | | ????????????????????????## ####????# ##?## # | | ???????????????????????## ##???# ### | | ??????????????????????## ##??# # | | ??????????????????????# ##?# % ## | | ??????????????????????# #?## ##### # | | ??????????????????????#### ##?## ##??## ## | | ?????????????????????????# ##?# ###?# # | | ?????????????????????????## #### ### ## | | ??????????????????????????## ### ### | | ???????????????????????????#; ## ### | | ??????????????????????????# ; ## ## | | ????????????????????????##;;; ### | | ????????????????????????# #?# | | ????????????????????????#@ O ### | | ???????????????????????## ;; ## # | | ??????????????????????## ##;;;; ### = # | | ??????????????????????# R##??### #?# ### | | ??????????????????????# #?# ### c### ##? | | ????????????????????? #?#% ! ## #? | | ???????????????????? ##?# ## ##? | | ??????????????????? ##???## ### #####?? | | ????????????????? #??????##??##### #?###?? | | ????????????????#" ##???????????????# ##### #?? | | ????????????????###?????????????????# ##?## #?# | | ???????????????????????????????????## ##?## ### | | ?????????????????????????????####### #### ""## | | ?????????????????????????????# " ""# | | ???????????????????????"" "" "# | | ????????????????????????""" ## """ # | | ?????????????????????????##""# ?# ##""" | | ?????????????????????????????##=% ??# "###### | | ??????????????????????????????# & ??# ####????# | | ??????????????????????????????# ??# """##???????? | | ?????????????????????????????? ???#"""# ????????? | | ????????????????????????????? #???# #"????????? | | ????????????????????????????###????####"" ???????? | | ???????????????????????????????????????#"#???????? | | ?????????????????????????????????????????????????? | +----------------------------------------------------+ Best States ------------- Heat Dissipation 25 Energy Generation 15 Energy Capacity 250 Matter Stores 300 Matter Capacity 300 Sight Range 16 Terrain Scan Density 10 Armor Coverage 150 Propulsion Shielding 33 Evasion (%) 55 Recoil Reduction 2 Item Schematics ----------------- None Robot Schematics ------------------ None Fabricated ------------ Nothing Repaired ---------- Nothing Studied --------- None Alien Tech Used ----------------- None Achievements -------------- None Challenges ------------ None Game ------ Seed BladeGodWand Manual? 0 Play Time 00:29:38 Cumulative 89.3 hours Start 2026.07.04 @ 22:57:18 End 2026.07.04 @ 23:24:15 Sessions 1 Manual Loads 0 Difficulty Rogue Special Mode None Game No. 99 Rogue 99 Adventurer 0 Explorer 0 Win Type - Total 2 Types 2/0/0/0/0/0/0/0/0/0 Lore% 39 Gallery% 38 Achievement% 35 Wizard Run 0 Options --------- Layout 0 ASCII 0 Keyboard 1 Movement Arrows Keybinds 0 Fullscreen 0 Font 20/Smallcaps Map View 76x50 Zoom Use 0% Tactical HUD 1 Map Filters NONE Filters NONE Steam 1 RUN: 515ba4d0-3b79-458b-bb23-7cb3a56e55b9